[Event "Late-Titled-Tuesday-Blitz-May-28-2024"]
[Site "Chess.com"]
[Date "2024.05.28"]
[Round "2"]
[White "Bilan_Danila"]
[Black "alexrustemov"]
[Result "0-1"]
[WhiteElo "2549"]
[BlackElo "2849"]
[TimeControl "180+1"]
[EndTime "14:19:33 PDT"]
[Termination "alexrustemov won by resignation"]

1. d4 {[%clk 0:03:00.9]} 1... d5 {[%clk 0:03:00.2]} 2. Nf3 {[%clk 0:02:55.6]}
2... Nf6 {[%clk 0:03:00.4]} 3. c4 {[%clk 0:02:55.3]} 3... dxc4 {[%clk
0:03:00.9]} 4. e3 {[%clk 0:02:55]} 4... e6 {[%clk 0:03:01.1]} 5. Bxc4 {[%clk
0:02:55.5]} 5... c5 {[%clk 0:03:01.7]} 6. dxc5 {[%clk 0:02:53.6]} 6... Bxc5
{[%clk 0:03:00.6]} 7. Qxd8+ {[%clk 0:02:53.3]} 7... Kxd8 {[%clk 0:03:01.5]} 8.
a3 {[%clk 0:02:53.8]} 8... Ke7 {[%clk 0:03:01.6]} 9. b4 {[%clk 0:02:53.7]} 9...
Bd6 {[%clk 0:03:00.4]} 10. Bb2 {[%clk 0:02:54.2]} 10... Bd7 {[%clk 0:03:00.5]}
11. Nbd2 {[%clk 0:02:54.1]} 11... Rc8 {[%clk 0:02:52.8]} 12. Ne5 {[%clk
0:02:32.4]} 12... Be8 {[%clk 0:02:47.7]} 13. O-O {[%clk 0:02:24.6]} 13... Nc6
{[%clk 0:02:44.7]} 14. Nd3 {[%clk 0:02:17.5]} 14... Rc7 {[%clk 0:02:35.7]} 15.
Rac1 {[%clk 0:02:00.3]} 15... Rac8 {[%clk 0:02:35.4]} 16. Bb3 {[%clk 0:01:35.7]}
16... b5 {[%clk 0:02:19.2]} 17. Nc5 {[%clk 0:01:06]} 17... a5 {[%clk 0:02:03.5]}
18. Nde4 {[%clk 0:01:02.1]} 18... axb4 {[%clk 0:01:51.8]} 19. Nxd6 {[%clk
0:00:47.2]} 19... Kxd6 {[%clk 0:01:51.1]} 20. Na6 {[%clk 0:00:43.6]} 20... Ra7
{[%clk 0:01:48.3]} 21. Nxb4 {[%clk 0:00:41.5]} 21... Ke7 {[%clk 0:01:46.6]} 22.
f3 {[%clk 0:00:25.1]} 22... Raa8 {[%clk 0:01:28.7]} 23. e4 {[%clk 0:00:24.4]}
23... Na5 {[%clk 0:01:28.6]} 24. Ba2 {[%clk 0:00:21.2]} 24... Nc4 {[%clk
0:01:28.3]} 25. Bxc4 {[%clk 0:00:20.6]} 25... bxc4 {[%clk 0:01:28]} 26. Kf2
{[%clk 0:00:17.4]} 26... Ba4 {[%clk 0:01:18.4]} 27. Rc3 {[%clk 0:00:16.7]} 27...
Bb3 {[%clk 0:01:17.7]} 28. Rfc1 {[%clk 0:00:13.5]} 28... Nd7 {[%clk 0:01:17.8]}
29. Re3 {[%clk 0:00:09.7]} 29... f6 {[%clk 0:01:09.6]} 30. Bd4 {[%clk
0:00:02.3]} 30... Rxa3 {[%clk 0:01:05.1]} 31. f4 {[%clk 0:00:02.2]} 31... Ra4
{[%clk 0:01:03.5]} 32. Bc3 {[%clk 0:00:02.6]} 32... Nc5 {[%clk 0:00:58.4]} 33.
Rce1 {[%clk 0:00:03]} 33... Rd8 {[%clk 0:00:53]} 34. Kf3 {[%clk 0:00:03.2]}
34... Kf7 {[%clk 0:00:46.8]} 35. g4 {[%clk 0:00:02.9]} 35... h6 {[%clk
0:00:46.3]} 36. h4 {[%clk 0:00:03.1]} 36... Nd3 {[%clk 0:00:42.4]} 37. Nxd3
{[%clk 0:00:02.8]} 37... cxd3 {[%clk 0:00:42.7]} 38. Bd2 {[%clk 0:00:03.2]}
38... Ra2 {[%clk 0:00:37.6]} 39. Bc3 {[%clk 0:00:02.8]} 39... Bc4 {[%clk
0:00:28.5]} 40. Rb1 {[%clk 0:00:01.2]} 40... d2 {[%clk 0:00:25.3]} 41. Bxd2
{[%clk 0:00:01.7]} 41... Rdxd2 {[%clk 0:00:24.8]} 42. Rb7+ {[%clk 0:00:02.6]}
42... Kg8 {[%clk 0:00:24.7]} 43. Rc3 {[%clk 0:00:02.6]} 43... Rd3+ {[%clk
0:00:22.8]} 44. Rxd3 {[%clk 0:00:03]} 44... Bxd3 {[%clk 0:00:23.7]} 45. Ke3
{[%clk 0:00:03.9]} 45... Ra3 {[%clk 0:00:22.4]} 46. Kd4 {[%clk 0:00:03.2]} 46...
Be2 {[%clk 0:00:21.7]} 47. g5 {[%clk 0:00:03.6]} 47... hxg5 {[%clk 0:00:21]} 48.
hxg5 {[%clk 0:00:04.5]} 48... fxg5 {[%clk 0:00:21]} 49. fxg5 {[%clk 0:00:05.4]}
49... Bh5 {[%clk 0:00:19.5]} 50. Ke5 {[%clk 0:00:05.7]} 50... Ra6 {[%clk
0:00:18.9]} 51. Re7 {[%clk 0:00:04.5]} 51... Bg6 {[%clk 0:00:18.3]} 52. Rc7
{[%clk 0:00:02.2]} 52... Kh7 {[%clk 0:00:17.3]} 53. Kf4 {[%clk 0:00:02.4]} 53...
Ra4 {[%clk 0:00:16.9]} 54. Re7 {[%clk 0:00:03.1]} 54... Rxe4+ {[%clk 0:00:16.6]}
55. Kg3 {[%clk 0:00:03.8]} 55... e5 {[%clk 0:00:15.6]} 56. Re6 {[%clk
0:00:03.4]} 56... Bf5 {[%clk 0:00:15.3]} 57. Re8 {[%clk 0:00:03.4]} 57... Kg6
{[%clk 0:00:14.2]} 58. Kf3 {[%clk 0:00:04.3]} 58... Rf4+ {[%clk 0:00:11.7]} 59.
Ke3 {[%clk 0:00:04.2]} 59... Re4+ {[%clk 0:00:10.7]} 60. Kf3 {[%clk 0:00:04.7]}
60... Kxg5 {[%clk 0:00:11.3]} 61. Rg8 {[%clk 0:00:04.8]} 61... g6 {[%clk
0:00:11.8]} 62. Ra8 {[%clk 0:00:05.7]} 62... Re1 {[%clk 0:00:11.5]} 63. Ra1
{[%clk 0:00:06.6]} 63... e4+ {[%clk 0:00:11]} 64. Kf2 {[%clk 0:00:06.5]} 64...
Rxa1 {[%clk 0:00:11.5]} 0-1

[Event "Late-Titled-Tuesday-Blitz-May-28-2024"]
[Site "Chess.com"]
[Date "2024.05.28"]
[Round "2"]
[White "Magicmaster17"]
[Black "biostatistician"]
[Result "0-1"]
[WhiteElo "2873"]
[BlackElo "2578"]
[TimeControl "180+1"]
[EndTime "14:19:35 PDT"]
[Termination "biostatistician won by checkmate"]

1. d4 {[%clk 0:02:54.1]} 1... Nf6 {[%clk 0:02:59.4]} 2. Nf3 {[%clk 0:02:53.9]}
2... g6 {[%clk 0:02:59.7]} 3. Nbd2 {[%clk 0:02:53.8]} 3... d5 {[%clk 0:02:59.1]}
4. e3 {[%clk 0:02:53.8]} 4... Bg7 {[%clk 0:02:59.3]} 5. c4 {[%clk 0:02:53.6]}
5... O-O {[%clk 0:02:54.7]} 6. b4 {[%clk 0:02:53.1]} 6... c6 {[%clk 0:02:44.9]}
7. a4 {[%clk 0:02:51.1]} 7... Bf5 {[%clk 0:02:44.5]} 8. Ba3 {[%clk 0:02:42.6]}
8... Ne4 {[%clk 0:02:44]} 9. Be2 {[%clk 0:02:38.8]} 9... Nc3 {[%clk 0:02:41.2]}
10. Qb3 {[%clk 0:02:38.2]} 10... Nxe2 {[%clk 0:02:41.2]} 11. Kxe2 {[%clk
0:02:39.1]} 11... Re8 {[%clk 0:02:35.5]} 12. Rhd1 {[%clk 0:02:29.4]} 12... e5
{[%clk 0:01:52.5]} 13. dxe5 {[%clk 0:02:22.3]} 13... Nd7 {[%clk 0:01:52.3]} 14.
Bb2 {[%clk 0:02:15.7]} 14... Nxe5 {[%clk 0:01:50.6]} 15. cxd5 {[%clk 0:02:11.9]}
15... cxd5 {[%clk 0:01:22.8]} 16. Bxe5 {[%clk 0:01:51.7]} 16... Bxe5 {[%clk
0:01:23.7]} 17. Rac1 {[%clk 0:01:51.9]} 17... Bf6 {[%clk 0:01:10.9]} 18. Kf1
{[%clk 0:01:45.7]} 18... Rc8 {[%clk 0:01:02.4]} 19. h3 {[%clk 0:01:41.7]} 19...
Qd7 {[%clk 0:00:47]} 20. b5 {[%clk 0:01:34.3]} 20... Be6 {[%clk 0:00:39.4]} 21.
Qb4 {[%clk 0:01:31.6]} 21... Rxc1 {[%clk 0:00:38.6]} 22. Rxc1 {[%clk 0:01:32.5]}
22... Rc8 {[%clk 0:00:39.1]} 23. Rxc8+ {[%clk 0:01:31.3]} 23... Qxc8 {[%clk
0:00:40]} 24. Nd4 {[%clk 0:01:29.6]} 24... Qc1+ {[%clk 0:00:39.4]} 25. Ke2
{[%clk 0:01:29.5]} 25... Qc7 {[%clk 0:00:17.1]} 26. N2f3 {[%clk 0:01:03.6]}
26... Bd7 {[%clk 0:00:16.9]} 27. Qb3 {[%clk 0:01:02.9]} 27... Qc5 {[%clk
0:00:12.7]} 28. Qc2 {[%clk 0:00:59]} 28... Qxc2+ {[%clk 0:00:12.3]} 29. Nxc2
{[%clk 0:00:59.9]} 29... a6 {[%clk 0:00:13]} 30. Nfd4 {[%clk 0:00:58.7]} 30...
axb5 {[%clk 0:00:12.4]} 31. axb5 {[%clk 0:00:59.6]} 31... Kf8 {[%clk 0:00:12.9]}
32. Kd3 {[%clk 0:00:59.8]} 32... Ke7 {[%clk 0:00:13.3]} 33. Na1 {[%clk 0:00:38]}
33... Kd6 {[%clk 0:00:12.5]} 34. Nab3 {[%clk 0:00:37.6]} 34... Be5 {[%clk
0:00:07.6]} 35. Na5 {[%clk 0:00:35.1]} 35... Kc7 {[%clk 0:00:06.2]} 36. Nab3
{[%clk 0:00:24.2]} 36... Kb6 {[%clk 0:00:06.5]} 37. f4 {[%clk 0:00:22.8]} 37...
Bf6 {[%clk 0:00:06.7]} 38. g4 {[%clk 0:00:19.5]} 38... Bxb5+ {[%clk 0:00:07.1]}
39. Kd2 {[%clk 0:00:15]} 39... Bc4 {[%clk 0:00:07.4]} 40. g5 {[%clk 0:00:15.5]}
40... Bg7 {[%clk 0:00:07.3]} 41. h4 {[%clk 0:00:16]} 41... Kc7 {[%clk
0:00:07.2]} 42. Nc1 {[%clk 0:00:12]} 42... Kd6 {[%clk 0:00:07.4]} 43. Nf3 {[%clk
0:00:11.7]} 43... b5 {[%clk 0:00:07.6]} 44. Nd3 {[%clk 0:00:11.7]} 44... Bxd3
{[%clk 0:00:06.5]} 45. Kxd3 {[%clk 0:00:12.6]} 45... b4 {[%clk 0:00:07]} 46. Nd2
{[%clk 0:00:12.9]} 46... Kc5 {[%clk 0:00:01.6]} 47. Nb3+ {[%clk 0:00:13.8]}
47... Kb5 {[%clk 0:00:01.9]} 48. Kc2 {[%clk 0:00:13.3]} 48... Kc4 {[%clk
0:00:01.9]} 49. Nd2+ {[%clk 0:00:13.5]} 49... Kc5 {[%clk 0:00:02.8]} 50. Nb3+
{[%clk 0:00:14.1]} 50... Kc4 {[%clk 0:00:03.1]} 51. Nd2+ {[%clk 0:00:14.7]}
51... Kb5 {[%clk 0:00:04]} 52. Nb3 {[%clk 0:00:14.6]} 52... Bc3 {[%clk
0:00:04.5]} 53. Kd3 {[%clk 0:00:14.1]} 53... Ka4 {[%clk 0:00:04.2]} 54. Kc2
{[%clk 0:00:14.2]} 54... Ka3 {[%clk 0:00:04.4]} 55. Nc5 {[%clk 0:00:13.7]} 55...
Ka2 {[%clk 0:00:04.2]} 56. Nd3 {[%clk 0:00:09.1]} 56... Bg7 {[%clk 0:00:03.1]}
57. Nc1+ {[%clk 0:00:10]} 57... Ka3 {[%clk 0:00:03.1]} 58. Nd3 {[%clk
0:00:10.9]} 58... b3+ {[%clk 0:00:03.6]} 59. Kb1 {[%clk 0:00:11.3]} 59... b2
{[%clk 0:00:03.8]} 60. Nf2 {[%clk 0:00:08.6]} 60... Kb3 {[%clk 0:00:04.1]} 61.
Nd1 {[%clk 0:00:09.1]} 61... Bc3 {[%clk 0:00:03.2]} 62. Nf2 {[%clk 0:00:06.7]}
62... d4 {[%clk 0:00:03.6]} 63. Nd3 {[%clk 0:00:07.6]} 63... dxe3 {[%clk
0:00:03.7]} 64. Nc5+ {[%clk 0:00:07.7]} 64... Kc4 {[%clk 0:00:03.8]} 65. Ne4
{[%clk 0:00:08.6]} 65... e2 {[%clk 0:00:04.3]} 66. Kc2 {[%clk 0:00:08.8]} 66...
e1=Q {[%clk 0:00:04.4]} 67. Nd6+ {[%clk 0:00:09.7]} 67... Kb4 {[%clk 0:00:03.7]}
68. Kd3 {[%clk 0:00:09.5]} 68... b1=Q# {[%clk 0:00:04.4]} 0-1

[Event "Late-Titled-Tuesday-Blitz-May-28-2024"]
[Site "Chess.com"]
[Date "2024.05.28"]
[Round "2"]
[White "Zq1"]
[Black "RAU4ever"]
[Result "1/2-1/2"]
[WhiteElo "2530"]
[BlackElo "2339"]
[TimeControl "180+1"]
[EndTime "14:19:40 PDT"]
[Termination "Game drawn by repetition"]

1. d4 {[%clk 0:03:00.9]} 1... Nf6 {[%clk 0:02:58.5]} 2. c4 {[%clk 0:03:01]} 2...
e6 {[%clk 0:02:58.8]} 3. g3 {[%clk 0:03:00.8]} 3... Bb4+ {[%clk 0:02:58.8]} 4.
Nd2 {[%clk 0:02:58.8]} 4... Nc6 {[%clk 0:02:57.4]} 5. Nf3 {[%clk 0:02:58]} 5...
b6 {[%clk 0:02:56.6]} 6. Bg2 {[%clk 0:02:57.6]} 6... Bb7 {[%clk 0:02:56.4]} 7.
O-O {[%clk 0:02:57.6]} 7... O-O {[%clk 0:02:56.2]} 8. Qc2 {[%clk 0:02:47.5]}
8... Bxd2 {[%clk 0:02:52.4]} 9. Bxd2 {[%clk 0:02:44.8]} 9... d6 {[%clk
0:02:52.1]} 10. Bc3 {[%clk 0:02:37.7]} 10... Qe7 {[%clk 0:02:50.3]} 11. Rad1
{[%clk 0:02:32.7]} 11... e5 {[%clk 0:02:45.7]} 12. dxe5 {[%clk 0:02:29.5]} 12...
Nxe5 {[%clk 0:02:38.6]} 13. Nxe5 {[%clk 0:02:22.5]} 13... Bxg2 {[%clk
0:02:38.3]} 14. Kxg2 {[%clk 0:02:21.2]} 14... dxe5 {[%clk 0:02:37.4]} 15. Qf5
{[%clk 0:02:19.3]} 15... Rfe8 {[%clk 0:02:02.8]} 16. Rd2 {[%clk 0:02:15.9]}
16... a5 {[%clk 0:01:56.6]} 17. Rfd1 {[%clk 0:02:14.2]} 17... Qc5 {[%clk
0:01:51.7]} 18. b3 {[%clk 0:02:07.4]} 18... a4 {[%clk 0:01:51.6]} 19. g4 {[%clk
0:02:05]} 19... Qc6+ {[%clk 0:01:33.8]} 20. Kg1 {[%clk 0:01:48]} 20... Qe4
{[%clk 0:01:25.1]} 21. h3 {[%clk 0:01:26.2]} 21... Qxf5 {[%clk 0:01:11.8]} 22.
gxf5 {[%clk 0:01:25.1]} 22... Ne4 {[%clk 0:01:12.7]} 23. Rc2 {[%clk 0:01:18.6]}
23... axb3 {[%clk 0:01:11.9]} 24. axb3 {[%clk 0:01:18]} 24... Nxc3 {[%clk
0:01:04]} 25. Rxc3 {[%clk 0:01:17.4]} 25... Ra2 {[%clk 0:01:01.2]} 26. Rd7
{[%clk 0:01:11.3]} 26... Rc8 {[%clk 0:00:28.2]} 27. e3 {[%clk 0:01:05.1]} 27...
h5 {[%clk 0:00:21.9]} 28. c5 {[%clk 0:01:01.1]} 28... bxc5 {[%clk 0:00:19.5]}
29. Rxc5 {[%clk 0:01:00.5]} 29... Rb2 {[%clk 0:00:19.5]} 30. Rxe5 {[%clk
0:00:59]} 30... Rxb3 {[%clk 0:00:19.4]} 31. Ree7 {[%clk 0:00:59]} 31... Rf8
{[%clk 0:00:20.3]} 32. Rxc7 {[%clk 0:00:57.8]} 32... Rb4 {[%clk 0:00:21]} 33.
Kg2 {[%clk 0:00:54.9]} 33... Rb6 {[%clk 0:00:18.9]} 34. e4 {[%clk 0:00:48.9]}
34... g6 {[%clk 0:00:19.2]} 35. fxg6 {[%clk 0:00:46.1]} 35... Rxg6+ {[%clk
0:00:20.1]} 36. Kf3 {[%clk 0:00:44.8]} 36... Kg7 {[%clk 0:00:16.3]} 37. e5
{[%clk 0:00:42.3]} 37... Rg1 {[%clk 0:00:16.1]} 38. e6 {[%clk 0:00:39.3]} 38...
Kg6 {[%clk 0:00:14.6]} 39. Rxf7 {[%clk 0:00:37.7]} 39... Rxf7+ {[%clk
0:00:13.6]} 40. exf7 {[%clk 0:00:32.8]} 40... Kg7 {[%clk 0:00:12.8]} 41. Rc5
{[%clk 0:00:32.2]} 41... Kxf7 {[%clk 0:00:11.1]} 42. Rxh5 {[%clk 0:00:31.9]}
42... Kg6 {[%clk 0:00:11.3]} 43. Rh4 {[%clk 0:00:30.9]} 43... Ra1 {[%clk
0:00:11.9]} 44. Rb4 {[%clk 0:00:29.6]} 44... Ra6 {[%clk 0:00:11.3]} 45. Kg4
{[%clk 0:00:29.1]} 45... Kf6 {[%clk 0:00:11]} 46. f4 {[%clk 0:00:29]} 46... Kg6
{[%clk 0:00:11.4]} 47. h4 {[%clk 0:00:29.1]} 47... Kf6 {[%clk 0:00:12]} 48. Rb7
{[%clk 0:00:28]} 48... Kg6 {[%clk 0:00:12.2]} 49. Re7 {[%clk 0:00:28]} 49... Kf6
{[%clk 0:00:12]} 50. Re5 {[%clk 0:00:27.9]} 50... Kg6 {[%clk 0:00:11.9]} 51. h5+
{[%clk 0:00:27.7]} 51... Kf6 {[%clk 0:00:11.4]} 52. Rg5 {[%clk 0:00:25.9]} 52...
Ra1 {[%clk 0:00:11.3]} 53. Rb5 {[%clk 0:00:23.2]} 53... Rg1+ {[%clk 0:00:11.2]}
54. Kf3 {[%clk 0:00:23.3]} 54... Rh1 {[%clk 0:00:09.8]} 55. Kg2 {[%clk
0:00:21.8]} 55... Rh4 {[%clk 0:00:08.8]} 56. Kg3 {[%clk 0:00:21.5]} 56... Rh1
{[%clk 0:00:09]} 57. Re5 {[%clk 0:00:19.5]} 57... Rg1+ {[%clk 0:00:09]} 58. Kf2
{[%clk 0:00:19.4]} 58... Rh1 {[%clk 0:00:09.4]} 59. Rg5 {[%clk 0:00:18.5]} 59...
Rh2+ {[%clk 0:00:09.4]} 60. Kg3 {[%clk 0:00:17.9]} 60... Rh1 {[%clk 0:00:09.9]}
61. Rg6+ {[%clk 0:00:15.8]} 61... Kf5 {[%clk 0:00:09.3]} 62. Rg5+ {[%clk
0:00:15.9]} 62... Kf6 {[%clk 0:00:09.1]} 63. Kg2 {[%clk 0:00:16.1]} 63... Rh4
{[%clk 0:00:08.8]} 64. Kf3 {[%clk 0:00:16.2]} 64... Rh1 {[%clk 0:00:08.9]} 65.
Ra5 {[%clk 0:00:16]} 65... Rh2 {[%clk 0:00:09]} 66. h6 {[%clk 0:00:14.4]} 66...
Rxh6 {[%clk 0:00:06.1]} 67. Ke4 {[%clk 0:00:13.3]} 67... Kg7 {[%clk 0:00:07]}
68. Ra7+ {[%clk 0:00:12]} 68... Kf8 {[%clk 0:00:07.4]} 69. Ke5 {[%clk
0:00:10.5]} 69... Rb6 {[%clk 0:00:08]} 70. Rd7 {[%clk 0:00:10.4]} 70... Rc6
{[%clk 0:00:08.4]} 71. Kf5 {[%clk 0:00:09.9]} 71... Ra6 {[%clk 0:00:09]} 72. Kg5
{[%clk 0:00:10]} 72... Rb6 {[%clk 0:00:09.5]} 73. Rh7 {[%clk 0:00:09.9]} 73...
Ra6 {[%clk 0:00:10.1]} 74. Kg4 {[%clk 0:00:09.4]} 74... Rb6 {[%clk 0:00:10.6]}
75. Rd7 {[%clk 0:00:09.4]} 75... Ra6 {[%clk 0:00:11.2]} 76. Rd5 {[%clk 0:00:10]}
76... Rb6 {[%clk 0:00:11.8]} 77. Kg5 {[%clk 0:00:10.4]} 77... Ra6 {[%clk
0:00:12.3]} 78. f5 {[%clk 0:00:10.7]} 78... Rb6 {[%clk 0:00:12.9]} 79. Re5
{[%clk 0:00:11]} 79... Ra6 {[%clk 0:00:13.4]} 80. Rd5 {[%clk 0:00:11.2]} 80...
Rb6 {[%clk 0:00:13.9]} 81. Rd7 {[%clk 0:00:11.5]} 81... Ra6 {[%clk 0:00:14.2]}
82. Rd5 {[%clk 0:00:10.4]} 1/2-1/2

[Event "Late-Titled-Tuesday-Blitz-May-28-2024"]
[Site "Chess.com"]
[Date "2024.05.28"]
[Round "2"]
[White "karinachess1"]
[Black "amintabatabaei"]
[Result "0-1"]
[WhiteElo "2612"]
[BlackElo "3043"]
[TimeControl "180+1"]
[EndTime "14:19:42 PDT"]
[Termination "amintabatabaei won by resignation"]

1. d4 {[%clk 0:03:00.9]} 1... e6 {[%clk 0:02:59.2]} 2. c4 {[%clk 0:03:00.8]}
2... b6 {[%clk 0:02:59.5]} 3. f3 {[%clk 0:02:59.1]} 3... f5 {[%clk 0:02:53.1]}
4. Nc3 {[%clk 0:02:54.9]} 4... Bb4 {[%clk 0:02:52.3]} 5. Qc2 {[%clk 0:02:49.1]}
5... Qh4+ {[%clk 0:02:51.1]} 6. g3 {[%clk 0:02:41.8]} 6... Qxd4 {[%clk 0:02:52]}
7. e3 {[%clk 0:02:40.9]} 7... Qf6 {[%clk 0:02:46]} 8. Bd2 {[%clk 0:02:40.7]}
8... Bb7 {[%clk 0:02:44.8]} 9. O-O-O {[%clk 0:02:40.2]} 9... Ne7 {[%clk
0:02:37]} 10. Nb5 {[%clk 0:02:37.3]} 10... Bxd2+ {[%clk 0:02:36]} 11. Qxd2
{[%clk 0:02:38.2]} 11... Qe5 {[%clk 0:02:21.8]} 12. Bg2 {[%clk 0:01:57.9]} 12...
Qc5 {[%clk 0:02:21.1]} 13. Qd4 {[%clk 0:01:53.6]} 13... Qxd4 {[%clk 0:02:17.5]}
14. exd4 {[%clk 0:01:51.5]} 14... Na6 {[%clk 0:02:16.9]} 15. Ne2 {[%clk
0:01:50.7]} 15... O-O {[%clk 0:02:12.1]} 16. Nf4 {[%clk 0:01:47.5]} 16... Ng6
{[%clk 0:02:04.3]} 17. Nxg6 {[%clk 0:01:34.9]} 17... hxg6 {[%clk 0:02:05.2]} 18.
Rd2 {[%clk 0:01:35.1]} 18... g5 {[%clk 0:02:03]} 19. f4 {[%clk 0:01:34.1]} 19...
Bxg2 {[%clk 0:02:02.4]} 20. Rxg2 {[%clk 0:01:35]} 20... g4 {[%clk 0:01:56.6]}
21. h3 {[%clk 0:01:29.7]} 21... gxh3 {[%clk 0:01:49.9]} 22. Rxh3 {[%clk
0:01:30.6]} 22... Kf7 {[%clk 0:01:49.3]} 23. Rgh2 {[%clk 0:01:31]} 23... Rfc8
{[%clk 0:01:28.8]} 24. a3 {[%clk 0:01:29.5]} 24... Nb8 {[%clk 0:01:24.3]} 25.
Kd2 {[%clk 0:01:27.5]} 25... a6 {[%clk 0:01:19.5]} 26. Nc3 {[%clk 0:01:27.1]}
26... Nc6 {[%clk 0:01:20.2]} 27. Kd3 {[%clk 0:01:27]} 27... Ne7 {[%clk
0:01:18.4]} 28. Ne2 {[%clk 0:01:00.3]} 28... d5 {[%clk 0:01:15.3]} 29. Ng1
{[%clk 0:00:50.7]} 29... c5 {[%clk 0:01:03.5]} 30. cxd5 {[%clk 0:00:47.7]} 30...
Nxd5 {[%clk 0:00:57.7]} 31. Nf3 {[%clk 0:00:46]} 31... c4+ {[%clk 0:00:57.9]}
32. Kd2 {[%clk 0:00:43.2]} 32... c3+ {[%clk 0:00:57.5]} 33. bxc3 {[%clk
0:00:42.2]} 33... Rxc3 {[%clk 0:00:58.4]} 34. Ng5+ {[%clk 0:00:35.5]} 34... Kf6
{[%clk 0:00:54.9]} 35. Re2 {[%clk 0:00:33.7]} 35... Rc6 {[%clk 0:00:50.6]} 36.
Rh1 {[%clk 0:00:09.6]} 36... Rac8 {[%clk 0:00:49.9]} 37. Rhe1 {[%clk 0:00:09.7]}
37... Rc2+ {[%clk 0:00:47.4]} 38. Kd1 {[%clk 0:00:10.1]} 38... Rc1+ {[%clk
0:00:32.6]} 39. Kd2 {[%clk 0:00:10.4]} 39... R8c2+ {[%clk 0:00:32.6]} 40. Kd3
{[%clk 0:00:10.8]} 40... Rc3+ {[%clk 0:00:32.1]} 41. Kd2 {[%clk 0:00:11.2]}
41... R1c2+ {[%clk 0:00:28.1]} 42. Kd1 {[%clk 0:00:11.7]} 42... Rxe2 {[%clk
0:00:27.4]} 43. Rxe2 {[%clk 0:00:12.6]} 43... Re3 {[%clk 0:00:23]} 44. Rg2
{[%clk 0:00:06.7]} 44... Rxa3 {[%clk 0:00:21.1]} 45. Kc1 {[%clk 0:00:05.6]}
45... b5 {[%clk 0:00:18.5]} 46. Kb2 {[%clk 0:00:05.2]} 46... b4 {[%clk
0:00:18.4]} 47. Re2 {[%clk 0:00:04.5]} 47... Re3 {[%clk 0:00:18.6]} 48. Rc2
{[%clk 0:00:03.8]} 48... Rxg3 {[%clk 0:00:18.1]} 49. Rc6 {[%clk 0:00:03]} 49...
Nxf4 {[%clk 0:00:18]} 50. Nh7+ {[%clk 0:00:03.2]} 50... Kg6 {[%clk 0:00:16.9]}
51. Nf8+ {[%clk 0:00:03.1]} 51... Kf7 {[%clk 0:00:17.4]} 52. Nd7 {[%clk
0:00:03.6]} 52... a5 {[%clk 0:00:16.4]} 53. Ne5+ {[%clk 0:00:03.5]} 53... Kf6
{[%clk 0:00:16.7]} 54. Rc7 {[%clk 0:00:02.8]} 54... g6 {[%clk 0:00:15]} 55. Rf7+
{[%clk 0:00:02.2]} 55... Kg5 {[%clk 0:00:15.3]} 56. Kc2 {[%clk 0:00:01.7]} 56...
a4 {[%clk 0:00:15.5]} 57. Rf8 {[%clk 0:00:01.4]} 57... a3 {[%clk 0:00:15.7]} 58.
Nf7+ {[%clk 0:00:01.3]} 58... Kg4 {[%clk 0:00:15.4]} 59. Ne5+ {[%clk 0:00:01.7]}
59... Kg5 {[%clk 0:00:15.3]} 60. Nf7+ {[%clk 0:00:01.8]} 60... Kf6 {[%clk
0:00:12.8]} 61. Ne5+ {[%clk 0:00:02]} 61... Kg7 {[%clk 0:00:13]} 62. Rf7+ {[%clk
0:00:02.4]} 62... Kg8 {[%clk 0:00:13.4]} 63. Rb7 {[%clk 0:00:02.5]} 63... b3+
{[%clk 0:00:13.6]} 64. Rxb3 {[%clk 0:00:01.6]} 64... Rxb3 {[%clk 0:00:14.5]} 65.
Kxb3 {[%clk 0:00:02.5]} 65... Kg7 {[%clk 0:00:13.9]} 66. Kxa3 {[%clk 0:00:03]}
66... g5 {[%clk 0:00:14.6]} 67. Kb4 {[%clk 0:00:03.2]} 67... g4 {[%clk 0:00:15]}
68. Kc3 {[%clk 0:00:03.3]} 68... g3 {[%clk 0:00:15.2]} 69. Nf3 {[%clk
0:00:03.4]} 69... Kg6 {[%clk 0:00:14.8]} 70. Ng1 {[%clk 0:00:03.6]} 70... Kh5
{[%clk 0:00:15.1]} 71. Kd2 {[%clk 0:00:04.1]} 71... Kg4 {[%clk 0:00:15.5]} 72.
Ke3 {[%clk 0:00:05]} 72... Nd5+ {[%clk 0:00:16]} 73. Kd3 {[%clk 0:00:05.3]}
73... Nf6 {[%clk 0:00:15.9]} 74. Ke3 {[%clk 0:00:05.6]} 74... f4+ {[%clk
0:00:16.3]} 75. Ke2 {[%clk 0:00:05.8]} 75... Nd5 {[%clk 0:00:16.1]} 76. Nf3
{[%clk 0:00:06.2]} 76... Nc3+ {[%clk 0:00:16.4]} 0-1